Cogmind - Beta 13 @@@ ROGUE MODE // 2024.06.18 @ 20:37:43 Player: CONM Result: Self-destructed Performance ------------- Evolutions (1) 500 Regions Visited (2) 400 Robots Destroyed (19) 95 Value Destroyed (318) 318 Prototype IDs (1) 20 Alien Tech Used (0) 0 Bonus (0) 0 TOTAL SCORE: 1333 Bonus ------- None Cogmind --------- Core Integrity 324/400 Matter 290/300 Energy 236/280 System Corruption 5% Temperature Warm (162) Movement Rolling (125) Ox3 Location -9/Materials Parts ------- > --- POWER (1) -------- Heavy Ion Engine > --- PROPULSION (2) --- Wheel > --- UTILITY (4) ------ Large Storage Unit Seismic Detector Hardened Light Armor Plating > --- WEAPON (2) ------- EM Pulse Gun > --- INVENTORY (15) --- Light Ion Engine Light Ion Engine Heavy Ion Engine Wheel Compact Wheel Small Storage Unit Medium Storage Unit Sensor Array Improved Terrain Scanner Field Recycling Unit (0) Light Assault Rifle Mining Claw Mining Claw Peak State ------------ > --- POWER ------------ Heavy Ion Engine > --- PROPULSION ------- Wheel Wheel > --- UTILITY ---------- Large Storage Unit Seismic Detector Hardened Light Armor Plating > --- WEAPON ----------- EM Pulse Gun EM Pulse Gun > --- INVENTORY -------- Light Ion Engine Light Ion Engine Heavy Ion Engine Wheel Compact Wheel Small Storage Unit Medium Storage Unit Sensor Array Improved Terrain Scanner Field Recycling Unit Light Assault Rifle Mining Claw Mining Claw [Rating: 12] Favorites ----------- Power Light Ion Engine Engine Light Ion Engine Propulsion Wheel Wheel Wheel Utility Seismic Detector Device Seismic Detector Storage Small Storage Unit Protection Hardened Light Armor Plating Weapon EM Pulse Gun Energy Gun EM Pulse Gun Build | -11 -10 -9 ------- Run | Yrd Mat Mat Slots Evolved 2 | . . 2 Power . | . . . Propulsion . | . . . Utility 2 | . . 2 Weapon . | . . . Parts Attached 11 | 8 . 3 Power 2 | 1 . 1 Engine 2 | 1 . 1 Core . | . . . Reactor . | . . . Propulsion 3 | 3 . . Treads . | . . . Leg . | . . . Wheel 3 | 3 . . Hover . | . . . Flight . | . . . Utility 4 | 2 . 2 Device 1 | 1 . . Storage 2 | 1 . 1 Processor . | . . . Hackware . | . . . Protection 1 | . . 1 Artifact . | . . . Weapon 2 | 2 . . Energy Gun 2 | 2 . . Energy Cannon . | . . . Ballistic Gun . | . . . Ballistic Cannon . | . . . Launcher . | . . . Special Weapon . | . . . Impact Weapon . | . . . Slashing Weapon . | . . . Piercing Weapon . | . . . Special Melee Weapon . | . . . Unidentified Prototypes . | . . . Parts Lost 2 | . . 2 Power . | . . . Propulsion 1 | . . 1 Utility . | . . . Weapon 1 | . . 1 Highest Loss Streak 2 | . . 2 To Critical Strikes . | . . . Average Slot Usage (%) 85 | . 100 78 Engine 11 | . 14 11 Wheel 23 | . 28 21 Device 11 | . 14 11 Storage 11 | . 14 11 Protection 1 | . . 2 Energy Gun 23 | . 28 21 Naked Turns . | . . . Heaviest Build 38 | 13 13 38 Greatest Support 26 | 26 20 20 Greatest Overweight (x) 1 | . . 1 Average Overweight (x) . | . . . Largest Inventory Capacity 15 | 8 8 15 Average Capacity 11 | 7 8 14 Most Carried 13 | 4 8 13 Average Carried 7 | 2 5 11 Final Capacity 15 | 8 8 15 Final Carried 13 | 4 8 13 Class Distribution -------------------- 100% | Mutant Dominant Class ---------------- Mutant | -10/Materials Mutant | -9/Materials Resources | -11 -10 -9 ----------- Run | Yrd Mat Mat Matter Collected 290 | 213 67 10 Remotely . | . . . Salvage Created 615 | 196 187 232 Parts 40 | 14 6 20 Haulers Intercepted . | . . . Recyclers Shooed . | . . . Parts Field Recycled . | . . . Retrieved Matter . | . . . Parts Self-Destructed . | . . . Prevented . | . . . Kills | -11 -10 -9 ------- Run | Yrd Mat Mat Combat Hostiles Destroyed 9 | . 1 8 Guns 4 | . 1 3 AOE 5 | . . 5 Classes Destroyed 6 | 2 2 2 Worker 2 | . . 2 Tunneler 4 | 4 . . Recycler 3 | 1 2 . Watcher 1 | . 1 . Swarmer 3 | . . 3 Grunt 6 | . 1 5 Best Kill Streak 5 | 3 4 5 Combat Bots Only 4 | . 1 4 Max Kills in Single Turn 5 | 1 2 5 Gunslinging . | . . . Exploded 4 | . . 4 Melee . | . . . Uniques/NPCs Destroyed . | . . . Combat | -11 -10 -9 -------- Run | Yrd Mat Mat Hostile Shots Fired 34 | . 2 32 Missed 11 | . 1 10 Damage Taken 402 | . 40 362 Core 102 | . 26 76 Absorbed by Shields . | . . . Core Remaining (%) 94 | 100 89 . Volleys Fired 22 | 6 5 11 Largest 2 | 2 2 2 Hottest 80 | 80 80 80 Shots Fired 43 | 12 10 21 Gun 43 | 12 10 21 Cannon . | . . . Launcher . | . . . Special . | . . . Kinetic . | . . . Thermal . | . . . Explosive . | . . . Electromagnetic 43 | 12 10 21 Robot Hit Streak 7 | 7 5 7 Robot Miss Streak 2 | 1 1 2 Penetration Max . | . . . Secondary Targets . | . . . Shots Hit Robots 29 | 8 8 13 Core Hits 21 | 6 4 11 Critical Kills . | . . . Critical Parts Destroyed . | . . . Critical Strikes 1 | 1 . . Corrupt 1 | 1 . . Melee Attacks . | . . . Impact . | . . . Slashing . | . . . Piercing . | . . . Sneak Attacks . | . . . Combat Hostiles . | . . . Follow-up Attacks . | . . . Damage Inflicted 1051 | 109 172 770 Guns 392 | 109 114 169 Cannons . | . . . Explosions 659 | . 58 601 Melee . | . . . Ramming . | . . . Kinetic . | . . . Thermal 274 | . 58 216 Explosive 385 | . . 385 Electromagnetic 392 | 109 114 169 Impact . | . . . Slashing . | . . . Piercing . | . . . Highest Corruption 5 | . . 5 Average Corruption 4 | . . 4 Corruption Purged . | . . . Corruption Blocked . | . . . Effects 1 | . . 1 Energy Discharges 1 | . . 1 Overload Shots . | . . . Overflow Damage 88 | . . 88 Projectiles . | . . . Explosions 88 | . . 88 Melee . | . . . Knockbacks . | . . . Impact . | . . . Kinetic . | . . . Secondary . | . . . Self-Inflicted Damage 128 | . 29 99 Shots 3 | . 1 2 Rammed . | . . . Targets Rammed . | . . . Kicked . | . . . Crushed . | . . . Highest Temperature 162 | 36 54 162 Average Temperature 38 | 17 29 55 Received Heat Transfer 87 | . 6 81 Siege Activations . | . . . Robots Corrupted . | . . . Combat Hostiles . | . . . Parts Fried . | . . . Impact Corruptions . | . . . Robots Melted . | . . . Combat Hostiles . | . . . Parts Melted . | . . . Heat Transferred 350 | . 100 250 Parts Sabotaged . | . . . Parts Stolen . | . . . Parts Stripped . | . . . Power Chain Reactions 4 | . 1 3 Alert | -11 -10 -9 ------- Run | Yrd Mat Mat Peak Influence 290 | 25 71 290 Initial 29 | . 16 29 Average 64 | 8 40 103 Maximum Alert Level 1 | . . 1 Low Security (%) 99 | 100 100 98 Level 1 . | . . 1 Level 2 . | . . . Level 3 . | . . . Level 4 . | . . . Level 5 . | . . . High Security . | . . . Max Security . | . . . Squads Dispatched 2 | . . 2 Investigation 1 | . . 1 Extermination . | . . . Reinforcement 1 | . . 1 Assault . | . . . Garrison . | . . . Intercept . | . . . Searches Triggered . | . . . Construction Impeded . | . . . Haulers Reinforced . | . . . Active Scanning Responses . | . . . Cargo Convoy Interrupts . | . . . Stealth | -11 -10 -9 --------- Run | Yrd Mat Mat Distress Signals 1 | . . 1 Communications Jammed . | . . . Distress Signals . | . . . Times Spotted 15 | . 3 12 Peak Tracking Total 8 | . 3 8 Tactical Retreats . | . . . Traps | -11 -10 -9 ------- Run | Yrd Mat Mat Traps Triggered 4 | . . 4 Indirectly . | . . . Trap Hack Attempts . | . . . Triggered . | . . . Disarmed . | . . . Reprogrammed . | . . . Reused . | . . . Traps Extracted . | . . . Installed . | . . . Triggered . | . . . Machines | -11 -10 -9 ---------- Run | Yrd Mat Mat Machines Disabled 2 | . . 2 Max in Single Turn 1 | . . 1 Machines Repaired . | . . . Machines Dismantled . | . . . Machines Sabotaged . | . . . Overloaded Fab Kills . | . . . Hacking | -11 -10 -9 --------- Run | Yrd Mat Mat Machines Accessed 5 | . 3 2 Terminals 4 | . 3 1 Fabricators . | . . . Repair Stations . | . . . Recycling Units . | . . . Scanalyzers 1 | . . 1 Garrison Access . | . . . Total Hacks 9 | . 3 6 Successful 4 | . . 4 Failed 5 | . 3 2 Catastrophic 1 | . 1 . Database Lockouts . | . . . Manual 4 | . 2 2 Terminals 5 | . 3 2 Fabricators . | . . . Repair Stations . | . . . Recycling Units . | . . . Scanalyzers 4 | . . 4 Garrison Access . | . . . Terminal Hacks . | . . . Fabricator Hacks . | . . . Repair Station Hacks . | . . . Recycling Unit Hacks . | . . . Scanalyzer 4 | . . 4 Insert Component 2 | . . 2 Analyze 2 | . . 2 Garrison Access Hacks . | . . . Unauthorized Hacks . | . . . Terminals . | . . . Fabricators . | . . . Repair Stations . | . . . Recycling Units . | . . . Scanalyzers . | . . . Garrison Access . | . . . Data Cores Recovered . | . . . Used . | . . . Hacking Detections 4 | . 3 1 Full Trace Events . | . . . Feedback Events . | . . . Feedback Blocked . | . . . Robot Schematics Acquired . | . . . Robots Built . | . . . Authchips . | . . . Time . | . . . Total Robot Build Rating . | . . . Part Schematics Acquired 2 | . . 2 Parts Built . | . . . Authchips . | . . . Time . | . . . Total Part Build Rating . | . . . Parts Repaired . | . . . Time . | . . . Parts Recycled . | . . . Recycled Matter . | . . . Retrieved Matter . | . . . Retrieved Components . | . . . Parts Scanalyzed 2 | . . 2 Part Schematics Acquired 2 | . . 2 Parts Damaged . | . . . Bothacking | -11 -10 -9 ------------ Run | Yrd Mat Mat Used RIF Installer . | . . . Robots Hacked . | . . . Non-combat . | . . . Combat . | . . . Robot Hacks Applied . | . . . Relay Couplers Released . | . . . Fabnet Peak Effective % . | . . . Robots Rewired . | . . . Allies Hacked . | . . . Hacks Repelled . | . . . Allies | -11 -10 -9 -------- Run | Yrd Mat Mat Total Allies . | . . . Largest Group . | . . . Highest-Rated Group . | . . . Highest-Rated Ally . | . . . Total Orders . | . . . Ally Attacks . | . . . Total Damage . | . . . Kills . | . . . Allies Corrupted . | . . . Allies Melted . | . . . Intel | -11 -10 -9 ------- Run | Yrd Mat Mat Robot Analysis Total . | . . . Derelict Logs Recovered . | . . . Drone Launches . | . . . Drone Recoveries . | . . . Exploration | -11 -10 -9 ------------- Run | Yrd Mat Mat Turns Passed 539 | 131 136 272 Spaces Moved 448 | 75 144 229 Core 5 | 5 . . Treads . | . . . Legs . | . . . Wheels 443 | 70 144 229 Hover . | . . . Flight . | . . . Fastest Speed 50 | 50 80 80 Average Speed 87 | 82 80 93 Slowest Speed 100 | 100 80 95 Overloaded Moves . | . . . Propulsion Burnouts . | . . . Robots Hopped . | . . . Cave-ins Triggered . | . . . Exploration Rate (%) 22 | 5 37 24 Regions Visited 2 Branch Regions . Pre-discovered Areas . | . . . Known Exits Taken . | . . . Unknown Exits Taken 2 | 1 1 . Scrap Searched . | . . . Spaces Dug . | . . . Terrain Destroyed 40 | . 2 38 Melee . | . . . Projectile . | . . . AOE 40 | . 2 38 Terrain Rammed . | . . . Walls Destroyed . | . . . Machines Disabled . | . . . Actions | -11 -10 -9 --------- Run | Yrd Mat Mat Total 545 | 127 154 264 Wait 52 | 36 2 14 Move 446 | 74 143 229 Hop . | . . . Pick Up 12 | 3 4 5 Fast Attach 9 | 7 . 2 Attach . | . . . Detach 1 | . . 1 Swap 2 | 1 . 1 Drop 1 | . . 1 Fire 22 | 6 5 11 Melee . | . . . Ram . | . . . Kick . | . . . Crush . | . . . Escape Stasis . | . . . Rewire . | . . . Trap . | . . . Miscellaneous . | . . . Route ------- -11/Scrapyard -10/Materials -9/Materials (discovered 1 exit: [*Mat]) History --------- Turn | Location | Event 34 | -11/Scrapyard | Discovered new exit (range 13) 132 | -11/Scrapyard | Entered Materials 234 | -10/Materials | Discovered new exit (range 14) 268 | -10/Materials | Entered another Materials area 268 | -9/Materials | Evolved 2 slots: Utility x2 305 | -9/Materials | Build established: Mutant 460 | -9/Materials | Discovered new exit (range 8) 540 | -9/Materials | Self-destructed Last Messages --------------- 00486_ Acquired Hrd. Light Armor Plating. 00513_ Connecting with Terminal... 00522_ Triggered Shock Trap. 00522_ The floor emits a surge of raw power. 00522_ System corrupted (+1). 00526_ K-01 Serf cleans the Nuclear Reactor. 00529_ System corrupted: Energy discharge (-75). 00529_ K-01 Serf cleans the Nuclear Reactor. 00529_ Y-45 Defender misfires. 00535_ Chain reaction triggered in Imp. Ion Engine. 00535_ Nuclear Reactor explodes. 00535_ K-01 Serf destroyed. 00535_ Destroyed Lgt. Ion Engine. 00535_ S-10 Pest destroyed. 00535_ EM Pulse Gun destroyed. 00535_ Destroyed EM Pulse Gun. 00535_ G-34 Mercenary destroyed. 00536_ Wheel destroyed. 00538_ U-05 Engineer builds a Wall. Map ----- +----------------------------------------------------+ | ???????? # # | | ?????????#############+##+# # | | ??????????????????????? # # | | ?????????????????????"""" # # | | ???????????????????"""""" # # | | ???????????????????"""""" # # | | ????????????????????""""" # # | | ??????????????????????""" #+###### | | ??????????????????????? # #????? | | ???????????????????????? # #????? | | ????????????????????????### #????? | | ??????????????????????????# ###### | | ??????????????????????????# # # | | ??????????????????????????# # # | | ??????????????????????????# # # | | ??????????????????????????# # # | | ??????????????????????????# + # | | ??????????????????????????# # " # | | ??????????????????????????# # T # | | ??????????????????????????# # " # | | ??????????????????###+????# # # | | ???????????????#### #### ###### | | ??????????? #????? | | ???????????? =###??? | | ???????????????#### ###Ygg #??? | | ??????????????????## # @== #? | | ???????????????????#??# = #? | | ????????????????????? % # | | ???????????????????# # ! # | | ???????????????????# ?# # | | ??????????????????# ?? Y ## | | ??????????????????+?? =%= ##? | | ????????????????????? * ##?? | | ???????????????????? ###??? | | ???????????????????##### ????? | | ???????????????????????#!!!!/????? | | ???????????????????????#!!!!/????? | | ????????????????????????######???? | | ?????????????????????????????????? | | | | | | | | | | | | | | | | | | | | | | | +----------------------------------------------------+ Best States ------------- Heat Dissipation 28 Energy Generation 14 Energy Capacity 280 Matter Stores 300 Matter Capacity 300 Sight Range 16 Terrain Scan Density 10 Armor Coverage 150 Evasion (%) 44 Item Schematics ----------------- Med. Storage Unit | -9/Materials | Scanalyzed Hvy. Ion Engine | -9/Materials | Scanalyzed Robot Schematics ------------------ None Fabricated ------------ Nothing Alien Tech Used ----------------- None Achievements -------------- None Challenges ------------ None Game ------ Seed ServoArmoredKinecellerator Manual? 0 Play Time 00:10:54 Cumulative 32.7 hours Start 2024.06.18 @ 13:34:39 End 2024.06.18 @ 20:37:43 Sessions 1 Manual Loads 0 Difficulty Rogue Special Mode None Game No. 56 Rogue 56 Adventurer 0 Explorer 0 Win Type - Total 0 Types 0/0/0/0/0/0/0/0/0 Lore% 22 Gallery% 24 Achievement% 26 Wizard Run 0 Options --------- Layout 1 ASCII 0 Keyboard 0 Movement Arrows Keybinds 0 Fullscreen 1 Font 24/Crisp Map View 50x40 Zoom Use 0% Tactical HUD 1 Map Filters NONE Filters NONE Steam 1 RUN: 930446e8-eb0b-4bf7-a6dd-4dfd0b42099a